[Event "Live Chess"]
[Site "Chess.com"]
[Date "2023.05.21"]
[Round "-"]
[White "martynstanley"]
[Black "ossie57"]
[Result "0-1"]
[WhiteElo "1024"]
[BlackElo "1838"]
[TimeControl "300"]
[EndTime "6:54:18 PDT"]
[Termination "ossie57 won by checkmate"]

1. d4 {[%clk 0:04:58.4]} 1... d5 {[%clk 0:04:58.6]} 2. e3 {[%clk 0:04:57.7]}
2... Nf6 {[%clk 0:04:57.3]} 3. Bd3 {[%clk 0:04:56.9]} 3... Bg4 {[%clk
0:04:55.5]} 4. f3 {[%clk 0:04:55.8]} 4... Bh5 {[%clk 0:04:54.5]} 5. g4 {[%clk
0:04:54.8]} 5... Bg6 {[%clk 0:04:53.7]} 6. Bxg6 {[%clk 0:04:53.6]} 6... hxg6
{[%clk 0:04:53.6]} 7. f4 {[%clk 0:04:53.1]} 7... Ne4 {[%clk 0:04:52.5]} 8. Nd2
{[%clk 0:04:51.7]} 8... e6 {[%clk 0:04:51.1]} 9. Ngf3 {[%clk 0:04:50.7]} 9...
Nxd2 {[%clk 0:04:45.9]} 10. Qxd2 {[%clk 0:04:48.9]} 10... Nc6 {[%clk 0:04:44.4]}
11. Ne5 {[%clk 0:04:48]} 11... Nxe5 {[%clk 0:04:40.5]} 12. fxe5 {[%clk
0:04:46.9]} 12... Qh4+ {[%clk 0:04:39.6]} 13. Qf2 {[%clk 0:04:45.1]} 13... Qxg4
{[%clk 0:04:27.8]} 14. Bd2 {[%clk 0:04:40.4]} 14... Qh4 {[%clk 0:04:25.7]} 15.
Qxh4 {[%clk 0:04:38.7]} 15... Rxh4 {[%clk 0:04:25.6]} 16. O-O-O {[%clk
0:04:37.8]} 16... O-O-O {[%clk 0:04:24.2]} 17. Be1 {[%clk 0:04:36.8]} 17... Rh3
{[%clk 0:04:20.6]} 18. Bg3 {[%clk 0:04:33.1]} 18... Be7 {[%clk 0:04:16.2]} 19.
Rdf1 {[%clk 0:04:31]} 19... f5 {[%clk 0:04:11.1]} 20. exf6 {[%clk 0:04:29.8]}
20... gxf6 {[%clk 0:04:09.4]} 21. Rf3 {[%clk 0:04:26.2]} 21... Bd6 {[%clk
0:04:00.5]} 22. Bxd6 {[%clk 0:04:23.1]} 22... Rxf3 {[%clk 0:03:58.3]} 23. Bf4
{[%clk 0:04:16.1]} 23... g5 {[%clk 0:03:57]} 24. Bg3 {[%clk 0:04:14.1]} 24...
Rxe3 {[%clk 0:03:55.1]} 25. Kd2 {[%clk 0:04:12.8]} 25... Re4 {[%clk 0:03:53.4]}
26. h3 {[%clk 0:04:11.1]} 26... Rxd4+ {[%clk 0:03:52.3]} 27. Ke2 {[%clk
0:04:08.5]} 27... Rc4 {[%clk 0:03:51.6]} 28. Kd2 {[%clk 0:04:06.8]} 28... Rh8
{[%clk 0:03:48.2]} 29. Bf2 {[%clk 0:04:04.8]} 29... Re4 {[%clk 0:03:47.1]} 30.
Be3 {[%clk 0:03:59.5]} 30... g4 {[%clk 0:03:42.9]} 31. Rf1 {[%clk 0:03:53.5]}
31... f5 {[%clk 0:03:39.6]} 32. b3 {[%clk 0:03:48.5]} 32... Rxh3 {[%clk
0:03:35.8]} 33. Re1 {[%clk 0:03:46.2]} 33... Rhxe3 {[%clk 0:03:30.8]} 34. Rxe3
{[%clk 0:03:45.2]} 34... Rxe3 {[%clk 0:03:30.3]} 35. Kxe3 {[%clk 0:03:44.6]}
35... Kd7 {[%clk 0:03:29.7]} 36. Kf4 {[%clk 0:03:44]} 36... Kd6 {[%clk
0:03:29.2]} 37. c3 {[%clk 0:03:41.3]} 37... b5 {[%clk 0:03:26.9]} 38. a3 {[%clk
0:03:40.5]} 38... c5 {[%clk 0:03:26.2]} 39. Kg3 {[%clk 0:03:39.1]} 39... a5
{[%clk 0:03:24.1]} 40. Kf4 {[%clk 0:03:37.9]} 40... a4 {[%clk 0:03:23.2]} 41.
bxa4 {[%clk 0:03:36.7]} 41... bxa4 {[%clk 0:03:22.7]} 42. Kg3 {[%clk 0:03:35.3]}
42... d4 {[%clk 0:03:22.1]} 43. cxd4 {[%clk 0:03:34.3]} 43... cxd4 {[%clk
0:03:22]} 44. Kf4 {[%clk 0:03:33.3]} 44... Kd5 {[%clk 0:03:20.9]} 45. Kg5 {[%clk
0:03:31.7]} 45... d3 {[%clk 0:03:20]} 46. Kf6 {[%clk 0:03:30.8]} 46... d2 {[%clk
0:03:19.5]} 47. Ke7 {[%clk 0:03:30.3]} 47... d1=Q {[%clk 0:03:18.9]} 48. Kf7
{[%clk 0:03:29.1]} 48... e5 {[%clk 0:03:18.1]} 49. Kf6 {[%clk 0:03:27.7]} 49...
e4 {[%clk 0:03:17.5]} 50. Kg5 {[%clk 0:03:27.2]} 50... e3 {[%clk 0:03:17.1]} 51.
Kxf5 {[%clk 0:03:25.5]} 51... e2 {[%clk 0:03:16.5]} 52. Kxg4 {[%clk 0:03:24.9]}
52... e1=Q+ {[%clk 0:03:15.3]} 53. Kh3 {[%clk 0:03:22.9]} 53... Qf3+ {[%clk
0:03:13.3]} 54. Kh2 {[%clk 0:03:21.6]} 54... Qef2# {[%clk 0:03:11.4]} 0-1

[Event "Live Chess"]
[Site "Chess.com"]
[Date "2023.05.21"]
[Round "-"]
[White "MrDodgy"]
[Black "McSlash1"]
[Result "0-1"]
[WhiteElo "2272"]
[BlackElo "2002"]
[TimeControl "300"]
[EndTime "6:54:26 PDT"]
[Termination "McSlash1 won by resignation"]

1. e4 {[%clk 0:04:53.5]} 1... c5 {[%clk 0:04:59.6]} 2. Nf3 {[%clk 0:04:45.4]}
2... d6 {[%clk 0:04:59]} 3. d4 {[%clk 0:04:45]} 3... cxd4 {[%clk 0:04:58.9]} 4.
Nxd4 {[%clk 0:04:44.3]} 4... Nf6 {[%clk 0:04:58.6]} 5. Nc3 {[%clk 0:04:43.7]}
5... g6 {[%clk 0:04:58.2]} 6. Be3 {[%clk 0:04:42.5]} 6... Bg7 {[%clk 0:04:57.8]}
7. f3 {[%clk 0:04:42.2]} 7... O-O {[%clk 0:04:57.4]} 8. Qd2 {[%clk 0:04:41.5]}
8... Nc6 {[%clk 0:04:57.1]} 9. O-O-O {[%clk 0:04:40.9]} 9... d5 {[%clk
0:04:56.6]} 10. exd5 {[%clk 0:04:34.9]} 10... Nxd5 {[%clk 0:04:56.5]} 11. Nxc6
{[%clk 0:04:33.5]} 11... bxc6 {[%clk 0:04:56.4]} 12. Bd4 {[%clk 0:04:32.8]}
12... Bxd4 {[%clk 0:04:53.9]} 13. Qxd4 {[%clk 0:04:31.1]} 13... Qb6 {[%clk
0:04:53.6]} 14. Nxd5 {[%clk 0:04:25.4]} 14... cxd5 {[%clk 0:04:53.5]} 15. Qxd5
{[%clk 0:04:11]} 15... Be6 {[%clk 0:04:51.8]} 16. Qd4 {[%clk 0:04:09.8]} 16...
Qa5 {[%clk 0:04:43.7]} 17. a3 {[%clk 0:04:00.9]} 17... Rfd8 {[%clk 0:04:42.9]}
18. Qb4 {[%clk 0:03:59.7]} 18... Qg5+ {[%clk 0:04:28.5]} 19. f4 {[%clk 0:03:58]}
19... Qg4 {[%clk 0:04:19.8]} 20. Bd3 {[%clk 0:03:41.7]} 20... a5 {[%clk
0:04:13.7]} 21. Qd2 {[%clk 0:03:20.3]} 21... Rac8 {[%clk 0:04:07.1]} 22. Kb1
{[%clk 0:03:11.9]} 22... a4 {[%clk 0:04:01.4]} 23. Qf2 {[%clk 0:03:03.9]} 23...
Qh5 {[%clk 0:03:58.6]} 24. Be4 {[%clk 0:02:40.2]} 24... Rxd1+ {[%clk 0:03:52]}
0-1

[Event "Live Chess"]
[Site "Chess.com"]
[Date "2023.05.21"]
[Round "-"]
[White "JohanKjeldahl"]
[Black "ClassyChameleon"]
[Result "1-0"]
[WhiteElo "1880"]
[BlackElo "1083"]
[TimeControl "300"]
[EndTime "6:54:34 PDT"]
[Termination "JohanKjeldahl won by checkmate"]

1. e4 {[%clk 0:04:58.1]} 1... e5 {[%clk 0:04:59.3]} 2. Nf3 {[%clk 0:04:56.3]}
2... Nc6 {[%clk 0:04:58.8]} 3. d4 {[%clk 0:04:55.3]} 3... exd4 {[%clk
0:04:57.5]} 4. c3 {[%clk 0:04:53]} 4... dxc3 {[%clk 0:04:54.9]} 5. Bc4 {[%clk
0:04:51.7]} 5... Nf6 {[%clk 0:04:50.9]} 6. Nxc3 {[%clk 0:04:49.8]} 6... Bd6
{[%clk 0:04:39.7]} 7. Qe2 {[%clk 0:04:43.3]} 7... Ne5 {[%clk 0:04:36.5]} 8. Nxe5
{[%clk 0:04:39.9]} 8... Bxe5 {[%clk 0:04:35.7]} 9. f4 {[%clk 0:04:38.5]} 9...
Bd4 {[%clk 0:04:25.4]} 10. e5 {[%clk 0:04:36.8]} 10... Ng8 {[%clk 0:04:19]} 11.
Ne4 {[%clk 0:04:27.9]} 11... Ne7 {[%clk 0:04:04.5]} 12. Be3 {[%clk 0:04:05.5]}
12... Bxe3 {[%clk 0:04:02]} 13. Qxe3 {[%clk 0:04:03.8]} 13... Nf5 {[%clk
0:03:51.9]} 14. Qb3 {[%clk 0:03:52.3]} 14... O-O {[%clk 0:03:49.5]} 15. O-O-O
{[%clk 0:03:47.8]} 15... b6 {[%clk 0:03:44.5]} 16. Ng5 {[%clk 0:03:41.7]} 16...
Nh6 {[%clk 0:03:36.9]} 17. Bd5 {[%clk 0:03:37.7]} 17... c6 {[%clk 0:03:30.3]}
18. Be4 {[%clk 0:03:32.7]} 18... Qe7 {[%clk 0:03:07.4]} 19. h4 {[%clk
0:03:29.2]} 19... g6 {[%clk 0:02:43.9]} 20. h5 {[%clk 0:03:25.8]} 20... Kg7
{[%clk 0:02:26.6]} 21. hxg6 {[%clk 0:03:20.4]} 21... fxg6 {[%clk 0:02:23.8]} 22.
Qh3 {[%clk 0:03:06.8]} 22... Qc5+ {[%clk 0:02:17.8]} 23. Kb1 {[%clk 0:03:04.2]}
23... d5 {[%clk 0:02:16.3]} 24. Qxh6+ {[%clk 0:03:01.7]} 24... Kg8 {[%clk
0:02:12.3]} 25. Qxh7# {[%clk 0:03:00.7]} 1-0

[Event "Live Chess"]
[Site "Chess.com"]
[Date "2023.05.21"]
[Round "-"]
[White "nigelst"]
[Black "mliszewski"]
[Result "0-1"]
[WhiteElo "1697"]
[BlackElo "1826"]
[TimeControl "300"]
[EndTime "6:54:41 PDT"]
[Termination "mliszewski won by resignation"]

1. e4 {[%clk 0:04:57.2]} 1... c6 {[%clk 0:04:59]} 2. d4 {[%clk 0:04:55.2]} 2...
d5 {[%clk 0:04:58.9]} 3. exd5 {[%clk 0:04:53.8]} 3... cxd5 {[%clk 0:04:58.1]} 4.
Bd3 {[%clk 0:04:53]} 4... Nc6 {[%clk 0:04:56.8]} 5. c3 {[%clk 0:04:51.5]} 5...
g6 {[%clk 0:04:55.2]} 6. Bf4 {[%clk 0:04:50.3]} 6... Bg7 {[%clk 0:04:52.7]} 7.
Nd2 {[%clk 0:04:48.5]} 7... Nh6 {[%clk 0:04:52.2]} 8. Ngf3 {[%clk 0:04:44.9]}
8... O-O {[%clk 0:04:51.3]} 9. O-O {[%clk 0:04:41.2]} 9... f6 {[%clk 0:04:50.7]}
10. Re1 {[%clk 0:04:39.2]} 10... Nf7 {[%clk 0:04:50.3]} 11. Qe2 {[%clk
0:04:33.1]} 11... e5 {[%clk 0:04:35]} 12. dxe5 {[%clk 0:04:31]} 12... fxe5
{[%clk 0:04:34.2]} 13. Nxe5 {[%clk 0:04:22.3]} 13... Nfxe5 {[%clk 0:04:31.9]}
14. Bxe5 {[%clk 0:04:21.3]} 14... Nxe5 {[%clk 0:04:30.6]} 15. Nf3 {[%clk
0:04:10.8]} 15... Nxd3 {[%clk 0:04:27.9]} 16. Qxd3 {[%clk 0:04:07.7]} 16... Bf5
{[%clk 0:04:23.3]} 17. Qb5 {[%clk 0:04:05.6]} 17... Qd7 {[%clk 0:04:19.5]} 18.
Qb4 {[%clk 0:04:01.4]} 18... a5 {[%clk 0:04:17.4]} 19. Qh4 {[%clk 0:03:56.6]}
19... Be4 {[%clk 0:04:06.7]} 20. Ng5 {[%clk 0:03:50.2]} 20... h6 {[%clk
0:03:57.6]} 21. Nxe4 {[%clk 0:03:47.2]} 21... dxe4 {[%clk 0:03:57]} 22. Qxe4
{[%clk 0:03:43.4]} 22... Rae8 {[%clk 0:03:55.2]} 23. Qc4+ {[%clk 0:03:40.9]}
23... Kh7 {[%clk 0:03:52.3]} 24. Red1 {[%clk 0:03:33.4]} 24... Qf5 {[%clk
0:03:46.7]} 25. f3 {[%clk 0:03:27.9]} 25... b5 {[%clk 0:03:35.1]} 26. Qc7 {[%clk
0:03:23.3]} 26... a4 {[%clk 0:03:23.4]} 27. Rd7 {[%clk 0:03:15.9]} 27... Qf6
{[%clk 0:03:12.8]} 28. h3 {[%clk 0:03:06.1]} 28... Rc8 {[%clk 0:03:06.1]} 29.
Qb7 {[%clk 0:03:03.6]} 29... Rb8 {[%clk 0:03:04.9]} 30. Qa7 {[%clk 0:02:47.7]}
30... Qb6+ {[%clk 0:03:01]} 31. Qxb6 {[%clk 0:02:45.9]} 31... Rxb6 {[%clk
0:03:00.3]} 32. Re1 {[%clk 0:02:42]} 32... b4 {[%clk 0:02:55.3]} 33. Ree7 {[%clk
0:02:37.8]} 33... Rg8 {[%clk 0:02:53.3]} 34. cxb4 {[%clk 0:02:29.3]} 34... Rxb4
{[%clk 0:02:51.7]} 35. Rb7 {[%clk 0:02:27.8]} 35... Rxb7 {[%clk 0:02:49.9]} 36.
Rxb7 {[%clk 0:02:25.6]} 36... Rc8 {[%clk 0:02:44.2]} 37. b3 {[%clk 0:02:22.4]}
37... axb3 {[%clk 0:02:39.9]} 38. axb3 {[%clk 0:02:21.4]} 38... h5 {[%clk
0:02:34.3]} 39. Kf2 {[%clk 0:02:10.4]} 39... Rc2+ {[%clk 0:02:32.8]} 40. Kg3
{[%clk 0:02:08.5]} 40... Kh6 {[%clk 0:02:30.7]} 41. h4 {[%clk 0:02:07]} 41...
Be5+ {[%clk 0:02:26.3]} 42. Kh3 {[%clk 0:02:06]} 42... Rc1 {[%clk 0:02:20.7]}
43. g4 {[%clk 0:02:00.3]} 43... hxg4+ {[%clk 0:02:16.5]} 44. fxg4 {[%clk
0:01:53.1]} 44... Rc3+ {[%clk 0:02:15.3]} 45. Kg2 {[%clk 0:01:47.8]} 45... Rg3+
{[%clk 0:02:13.7]} 46. Kf2 {[%clk 0:01:45.6]} 46... Rxg4 {[%clk 0:02:13]} 47.
Re7 {[%clk 0:01:29.7]} 47... Bd4+ {[%clk 0:02:04.1]} 48. Kf3 {[%clk 0:01:28.3]}
48... Rxh4 {[%clk 0:02:03.1]} 49. b4 {[%clk 0:01:20.7]} 49... Bf6 {[%clk
0:01:59]} 50. Rb7 {[%clk 0:01:18.7]} 50... Rh3+ {[%clk 0:01:56.6]} 51. Kg2
{[%clk 0:01:11.6]} 51... Rb3 {[%clk 0:01:56.5]} 52. b5 {[%clk 0:01:09.4]} 52...
g5 {[%clk 0:01:53.8]} 53. Rb8 {[%clk 0:01:06.4]} 53... g4 {[%clk 0:01:48.5]} 54.
b6 {[%clk 0:01:03.5]} 54... Be5 {[%clk 0:01:37.1]} 55. Rb7 {[%clk 0:00:59.9]}
55... g3 {[%clk 0:01:33.4]} 56. Re7 {[%clk 0:00:48]} 56... Rb2+ {[%clk
0:01:30.4]} 57. Kh3 {[%clk 0:00:46.2]} 57... Bb8 {[%clk 0:01:19.7]} 58. Re8
{[%clk 0:00:31.8]} 58... Rxb6 {[%clk 0:01:13.7]} 59. Kg4 {[%clk 0:00:24]} 59...
g2 {[%clk 0:01:11.8]} 60. Re1 {[%clk 0:00:19.8]} 60... g1=Q+ {[%clk 0:01:07.2]}
61. Rxg1 {[%clk 0:00:17.5]} 61... Rg6+ {[%clk 0:01:06.9]} 0-1

[Event "Live Chess"]
[Site "Chess.com"]
[Date "2023.05.21"]
[Round "-"]
[White "AMCWAML"]
[Black "EdenHazard8"]
[Result "1-0"]
[WhiteElo "2268"]
[BlackElo "1976"]
[TimeControl "300"]
[EndTime "6:54:44 PDT"]
[Termination "AMCWAML won by resignation"]

1. e4 {[%clk 0:04:58.1]} 1... c6 {[%clk 0:04:58.2]} 2. Nf3 {[%clk 0:04:57.1]}
2... d5 {[%clk 0:04:58.1]} 3. exd5 {[%clk 0:04:55.3]} 3... cxd5 {[%clk 0:04:58]}
4. d4 {[%clk 0:04:55.2]} 4... Nc6 {[%clk 0:04:56.8]} 5. Bd3 {[%clk 0:04:53]}
5... Bg4 {[%clk 0:04:55.9]} 6. c3 {[%clk 0:04:51.9]} 6... e6 {[%clk 0:04:55.3]}
7. Qb3 {[%clk 0:04:46.6]} 7... Qc7 {[%clk 0:04:53.1]} 8. Bf4 {[%clk 0:04:21.9]}
8... Qxf4 {[%clk 0:04:18.1]} 9. Qxb7 {[%clk 0:04:17.6]} 9... Rb8 {[%clk
0:04:04.4]} 10. Qxc6+ {[%clk 0:04:15]} 10... Kd8 {[%clk 0:04:03.4]} 11. Nbd2
{[%clk 0:04:06.7]} 11... Rxb2 {[%clk 0:04:01.1]} 12. Qa8+ {[%clk 0:03:48.7]}
12... Qb8 {[%clk 0:03:49.6]} 13. Qxb8+ {[%clk 0:03:45.4]} 13... Rxb8 {[%clk
0:03:49.5]} 14. Ne5 {[%clk 0:03:42.5]} 14... Bh5 {[%clk 0:03:47.4]} 15. Nc6+
{[%clk 0:03:40.9]} 15... Kc7 {[%clk 0:03:46]} 16. Nxb8 {[%clk 0:03:40.8]} 16...
Kxb8 {[%clk 0:03:45.9]} 17. Rb1+ {[%clk 0:03:38.9]} 1-0

[Event "Live Chess"]
[Site "Chess.com"]
[Date "2023.05.21"]
[Round "-"]
[White "zdanevych"]
[Black "JoRoSaR"]
[Result "0-1"]
[WhiteElo "1492"]
[BlackElo "1682"]
[TimeControl "300"]
[EndTime "6:54:44 PDT"]
[Termination "JoRoSaR won by resignation"]

1. d4 {[%clk 0:04:59.2]} 1... f5 {[%clk 0:04:59.1]} 2. c4 {[%clk 0:04:57.9]}
2... Nf6 {[%clk 0:04:58.7]} 3. Nc3 {[%clk 0:04:57.2]} 3... e6 {[%clk 0:04:58.2]}
4. a3 {[%clk 0:04:55.8]} 4... d6 {[%clk 0:04:57.7]} 5. Nf3 {[%clk 0:04:55.2]}
5... Be7 {[%clk 0:04:57.2]} 6. h3 {[%clk 0:04:54.7]} 6... O-O {[%clk 0:04:56.8]}
7. e3 {[%clk 0:04:52.7]} 7... Qe8 {[%clk 0:04:56.4]} 8. Bd3 {[%clk 0:04:52.1]}
8... Nbd7 {[%clk 0:04:55.3]} 9. O-O {[%clk 0:04:51.7]} 9... e5 {[%clk
0:04:53.5]} 10. dxe5 {[%clk 0:04:50.7]} 10... dxe5 {[%clk 0:04:53.1]} 11. Bxf5
{[%clk 0:04:47.7]} 11... c6 {[%clk 0:04:52.6]} 12. Bc2 {[%clk 0:04:35.8]} 12...
Bd8 {[%clk 0:04:51.1]} 13. b4 {[%clk 0:04:33.6]} 13... Bc7 {[%clk 0:04:50.4]}
14. Bb2 {[%clk 0:04:31.6]} 14... Qh5 {[%clk 0:04:46.8]} 15. Ne4 {[%clk
0:04:25.5]} 15... Nxe4 {[%clk 0:04:42.8]} 16. Bxe4 {[%clk 0:04:25.4]} 16... Nf6
{[%clk 0:04:42]} 17. Bc2 {[%clk 0:04:18.6]} 17... e4 {[%clk 0:04:37.7]} 18. Nh2
{[%clk 0:04:09.5]} 18... Qg6 {[%clk 0:04:33.6]} 19. Qd4 {[%clk 0:03:57]} 19...
Bxh3 {[%clk 0:04:29.1]} 20. Qxe4 {[%clk 0:03:53.9]} 20... Nxe4 {[%clk
0:04:25.7]} 0-1

[Event "Live Chess"]
[Site "Chess.com"]
[Date "2023.05.21"]
[Round "-"]
[White "Missedidea"]
[Black "garyjc"]
[Result "1-0"]
[WhiteElo "1769"]
[BlackElo "1035"]
[TimeControl "300"]
[EndTime "6:55:12 PDT"]
[Termination "Missedidea won by resignation"]

1. d4 {[%clk 0:04:58.1]} 1... Nf6 {[%clk 0:04:56.9]} 2. c4 {[%clk 0:04:55.7]}
2... g6 {[%clk 0:04:55.8]} 3. Nc3 {[%clk 0:04:54.3]} 3... Bg7 {[%clk 0:04:54.9]}
4. e4 {[%clk 0:04:52.9]} 4... d6 {[%clk 0:04:52.7]} 5. Nf3 {[%clk 0:04:50.9]}
5... O-O {[%clk 0:04:51.7]} 6. Be2 {[%clk 0:04:49.9]} 6... e5 {[%clk 0:04:40.5]}
7. d5 {[%clk 0:04:48.2]} 7... Na6 {[%clk 0:04:33.8]} 8. Bg5 {[%clk 0:04:46.2]}
8... h6 {[%clk 0:04:30.8]} 9. Bh4 {[%clk 0:04:43.8]} 9... g5 {[%clk 0:04:28.2]}
10. Bg3 {[%clk 0:04:42.3]} 10... Nh5 {[%clk 0:04:22.3]} 11. Nd2 {[%clk
0:04:39.4]} 11... f5 {[%clk 0:04:12.7]} 12. Bxh5 {[%clk 0:04:32.7]} 12... f4
{[%clk 0:04:04.3]} 13. O-O {[%clk 0:04:24]} 13... fxg3 {[%clk 0:04:02.3]} 14.
hxg3 {[%clk 0:04:08.5]} 14... Nc5 {[%clk 0:03:51.6]} 15. Qe2 {[%clk 0:03:56]}
15... Bd7 {[%clk 0:03:17.6]} 16. b4 {[%clk 0:03:52]} 16... Na6 {[%clk
0:03:09.4]} 17. Rab1 {[%clk 0:03:47.1]} 17... c6 {[%clk 0:03:04.7]} 18. Rfc1
{[%clk 0:03:30.7]} 18... cxd5 {[%clk 0:02:53.2]} 19. cxd5 {[%clk 0:03:27]} 19...
Nc7 {[%clk 0:02:45.7]} 20. a4 {[%clk 0:03:23.9]} 20... Ne8 {[%clk 0:01:59.2]}
21. Bg4 {[%clk 0:03:15.2]} 21... Bxg4 {[%clk 0:01:56.7]} 22. Qxg4 {[%clk
0:03:13.1]} 22... Nf6 {[%clk 0:01:50.9]} 23. Qe6+ {[%clk 0:03:10.6]} 23... Kh7
{[%clk 0:01:47.5]} 24. Nc4 {[%clk 0:03:06.5]} 24... Re8 {[%clk 0:01:42.8]} 25.
Qxd6 {[%clk 0:03:04.4]} 25... Qxd6 {[%clk 0:01:29]} 26. Nxd6 {[%clk 0:03:02.5]}
26... Rf8 {[%clk 0:01:24.3]} 27. Nf5 {[%clk 0:03:00.4]} 27... Ng4 {[%clk
0:01:20.5]} 28. Nb5 {[%clk 0:02:53.1]} 28... b6 {[%clk 0:01:12.4]} 29. Rc7
{[%clk 0:02:48.1]} 29... Rg8 {[%clk 0:01:07.8]} 30. Rbc1 {[%clk 0:02:42.9]}
30... Nf6 {[%clk 0:01:06.9]} 31. Nbd6 {[%clk 0:02:36.8]} 31... Ne8 {[%clk
0:00:57.2]} 32. Re7 {[%clk 0:02:21.2]} 32... Nxd6 {[%clk 0:00:53.7]} 33. Nxd6
{[%clk 0:02:18.4]} 33... Rad8 {[%clk 0:00:46.2]} 34. Nf5 {[%clk 0:02:16.5]}
34... Rde8 {[%clk 0:00:32.4]} 35. Rcc7 {[%clk 0:02:13.9]} 1-0

[Event "Live Chess"]
[Site "Chess.com"]
[Date "2023.05.21"]
[Round "-"]
[White "onemoretime1975"]
[Black "davigator"]
[Result "0-1"]
[WhiteElo "1855"]
[BlackElo "2302"]
[TimeControl "300"]
[EndTime "6:55:15 PDT"]
[Termination "davigator won by resignation"]

1. e4 {[%clk 0:04:57.8]} 1... c5 {[%clk 0:04:58.5]} 2. Nf3 {[%clk 0:04:56.4]}
2... Nc6 {[%clk 0:04:57.7]} 3. d3 {[%clk 0:04:54.7]} 3... g6 {[%clk 0:04:56]} 4.
g3 {[%clk 0:04:53.1]} 4... Bg7 {[%clk 0:04:55]} 5. Bg2 {[%clk 0:04:51.8]} 5...
d6 {[%clk 0:04:54.7]} 6. O-O {[%clk 0:04:48.2]} 6... e6 {[%clk 0:04:54.2]} 7. c3
{[%clk 0:04:46.8]} 7... Nge7 {[%clk 0:04:53.7]} 8. Nbd2 {[%clk 0:04:41.3]} 8...
O-O {[%clk 0:04:52.2]} 9. a3 {[%clk 0:04:36.5]} 9... e5 {[%clk 0:04:51.1]} 10.
b4 {[%clk 0:04:24.8]} 10... b6 {[%clk 0:04:48.1]} 11. b5 {[%clk 0:04:20.7]}
11... Na5 {[%clk 0:04:44]} 12. c4 {[%clk 0:04:16.7]} 12... Rb8 {[%clk 0:04:36]}
13. a4 {[%clk 0:04:13.7]} 13... h6 {[%clk 0:04:30]} 14. Nb3 {[%clk 0:04:11.2]}
14... Nxb3 {[%clk 0:04:27.7]} 15. Qxb3 {[%clk 0:04:09.6]} 15... f5 {[%clk
0:04:27.6]} 16. Nd2 {[%clk 0:04:05.2]} 16... f4 {[%clk 0:04:25.2]} 17. f3 {[%clk
0:04:00.8]} 17... fxg3 {[%clk 0:04:24.5]} 18. hxg3 {[%clk 0:03:58.2]} 18... h5
{[%clk 0:04:23.1]} 19. Kh2 {[%clk 0:03:50.2]} 19... Be6 {[%clk 0:04:20.5]} 20.
Bh3 {[%clk 0:03:46.3]} 20... Qd7 {[%clk 0:04:20]} 21. Bxe6+ {[%clk 0:03:44.4]}
21... Qxe6 {[%clk 0:04:19.9]} 22. Rh1 {[%clk 0:03:34.8]} 22... Bh6 {[%clk
0:04:17.2]} 23. Nf1 {[%clk 0:03:30.6]} 23... Bxc1 {[%clk 0:04:13.6]} 24. Rxc1
{[%clk 0:03:28.3]} 24... Rxf3 {[%clk 0:04:13.2]} 25. Rc2 {[%clk 0:03:22.2]}
25... Rbf8 {[%clk 0:04:11.7]} 26. Kg2 {[%clk 0:03:17.7]} 26... Qf6 {[%clk
0:04:05.4]} 27. Nh2 {[%clk 0:03:06.8]} 27... Rf2+ {[%clk 0:04:03.7]} 28. Rxf2
{[%clk 0:03:05.5]} 28... Qxf2+ {[%clk 0:04:03.2]} 29. Kh3 {[%clk 0:03:04.4]}
29... Qe2 {[%clk 0:03:46.8]} 30. Qb1 {[%clk 0:02:46.5]} 30... g5 {[%clk
0:03:22.8]} 31. Qc1 {[%clk 0:02:42.2]} 31... g4+ {[%clk 0:03:21.5]} 32. Kh4
{[%clk 0:02:40.6]} 32... Kg7 {[%clk 0:03:14.7]} 33. Qg5+ {[%clk 0:02:30.8]}
33... Ng6+ {[%clk 0:03:13.5]} 34. Kxh5 {[%clk 0:02:28.1]} 34... Rh8+ {[%clk
0:03:12.6]} 0-1